{"text_format":"1","workbook":"xlsx","n_sheets":2,"sheets":["Sheet2","Sheet3"],"not_rendered":{"charts":0,"images":0,"macros":0,"external_links":0,"defined_names":0,"comments":0,"pivot_tables":0},"unopened":[],"bounds":{"document_bytes":16777216,"sheet_cells":100000,"rows_first":2000,"rows_last":500,"rows_between":2000,"halvings":0,"cell_chars":16384,"cell_head_chars":4096},"cells_cut":0,"cells_raw":0,"read":"whole","date_system":"1900"}

{"sheet":"Sheet2","index":0,"n_rows":28,"n_cols":14,"rows_kept":28,"cut":false,"hidden":false,"merged":[]}
[]
[]
["Bibliothèque  publique de Casselman 2022"]
[]
[null,"jan.","fév.","mars","avril","mai","juin ","juillet","aout","sept.","oct.","nov.","déc.","Total"]
["Périodiques",17,14,13,13,17,15,0,19,17,null,null,null,{"$f":"SUM(B6:M6)","v":125}]
["Livres catalogués",62,128,121,54,86,86,74,44,80,null,null,null,{"$f":"SUM(B7:M7)","v":735}]
[null,null,null,null,null,null,null,null,null,null,null,null,null,{"$f":"SUM(B8:M8)","v":0}]
[null,null,null,null,null,null,null,null,null,null,null,null,null,{"$f":"SUM(B9:M9)","v":0}]
["WIFI",1,1,1,0,1,0,9,3,2,null,null,null,18]
["Usagers laptop",1,2,2,7,5,6,7,13,7,null,null,null,50]
[null,null,null,null,null,null,null,null,null,null,null,null,null,{"$f":"SUM(B12:M12)","v":0}]
[null,null,null,null,null,null,null,null,null,null,null,null,null,0]
["Élaguer (livres, pério.)",7,0,0,1,28,131,0,135,1,null,null,null,303]
[null,null,null,null,null,null,null,null,null,null,null,null,null,0]
[null,null,null,null,null,null,null,null,null,null,null,null,null,0]
["Membres inscrit ",2,11,30,14,10,31,62,45,22,null,null,null,227]
["Membres total",null,null,null,1.534,1.544,1575,1637,1682,1704,null,null,null,1682]
[]
[]
["Emprunts Périodiques",10,13,3,6,2,3,7,15,4,null,null,null,{"$f":"SUM(B21:M21)","v":63}]
["Emprunts",173,139,730,668,612,713,634,739,744,null,null,null,{"$f":"SUM(B22:M22)","v":5152}]
["Renouvellements",42,14,155,126,70,133,60,82,57,null,null,null,739]
["Réservations",20,15,30,34,26,23,17,24,20,null,null,null,209]
["Jeux",null,null,null,null,null,null,4,3,4,1,null,null,12]
[null,null,null,null,null,null,null,null,null,null,null,null,null,0]
[null,null,null,null,null,null,null,null,null,null,null,null,null,0]
["Dépôt  ( $ ) ",null,null,null,null,null,null,null,null,null,null,null,null,0]

{"sheet":"Sheet3","index":1,"n_rows":5,"n_cols":14,"rows_kept":5,"cut":false,"hidden":false,"merged":[]}
[]
[]
[]
[]
[null,null,null,null,null,null,null,null,null,null,null,null,null,"Total"]